bitfinex-derivatives/quotes_SOLF0:USTF0_20250829
["timestamp","ask_amount","ask_price","bid_price","bid_amount"]
[1756433008720,0.03418575,213.4,213.32,0.03263727]
[1756433009426,1.06418575,213.4,213.32,0.03263727]
[1756433010820,0.03418575,213.4,213.33,7.59]
[1756433013632,1.03,213.52,213.37,7.59]
[1756433013831,1.03,213.52,213.38,7.59]
[1756433014826,1.03,213.52,213.43,7.62515092]
[1756433015931,1.07,213.57,213.43,7.62515092]
[1756433016331,1.07,213.57,213.43,7.59]
[1756433016732,1.07,213.57,213.47,0.03119697]
[1756433017530,1.07,213.57,213.47,7.76119697]
[1756433019032,1.06,213.55,213.47,0.03119697]
[1756433019429,164.08752054,213.61,213.47,0.03119697]
[1756433019635,3.41404384,213.6,213.48,7.73]
[1756433019829,4.0452428,213.58,213.34,7.73]
[1756433020034,1.06,213.55,213.36,7.73]
[1756433020234,4.2137,213.56,213.52,0.03251885]
[1756433020433,1.06,213.54,213.41,7.73]
[1756433020734,4.2137,213.56,213.41,7.73]
[1756433020735,4.2137,213.56,213.52,0.03192757]
[1756433021032,3.41748674,213.55,213.41,7.73]
[1756433021230,1.06,213.54,213.41,7.73]
[1756433021432,1.06,213.55,213.52,0.03091037]
[1756433021734,120.14,213.57,213.41,7.73]
[1756433021735,1.06,213.53,213.41,7.73]
[1756433021936,1.06,213.51,213.41,7.73]
[1756433022235,1.06,213.51,213.45,0.03126861]
[1756433023433,1.06,213.49,213.45,0.03126861]
[1756433024437,48.86,213.52,213.45,0.03126861]
[1756433024636,5.94406329,213.51,213.45,0.03126861]
[1756433024833,5.94406329,213.5,213.45,7.76126861]
[1756433025037,1.06,213.53,213.46,7.73]
[1756433025234,3.43041934,213.52,213.46,7.73]
[1756433025434,1.06,213.53,213.46,7.73]
[1756433026134,2.51266827,213.52,213.46,7.73]
[1756433026435,1.06,213.53,213.46,7.73]
[1756433026838,2.51288886,213.52,213.46,7.73]
[1756433027133,86.14,213.55,213.46,7.73]
[1756433027327,1.06,213.53,213.45,0.03126861]
[1756433027528,1.06,213.51,213.45,0.03126861]
[1756433027734,4.215,213.49,213.45,0.03126861]
[1756433027937,2.51304872,213.48,213.45,0.03126861]
[1756433028137,1.06,213.52,213.45,0.03126861]
[1756433028338,1.06,213.5,213.45,0.03126861]
[1756433028639,1.06,213.48,213.36,7.73]
[1756433028827,2.51442443,213.47,213.45,0.03396152]
[1756433029029,2.51442443,213.46,213.45,0.03396152]
[1756433029236,2.51442443,213.46,213.36,7.73]
[1756433029530,5.275,213.49,213.43,0.03101391]
[1756433029734,3.57558095,213.48,213.43,0.03101391]
[1756433029937,2.51558095,213.47,213.43,0.03101391]
[1756433030138,2.51558095,213.46,213.43,0.03101391]
[1756433030440,1.06,213.48,213.43,0.03101391]
[1756433030634,2.51667914,213.47,213.43,0.03101391]
[1756433030834,3.57667914,213.46,213.43,0.03101391]
[1756433031040,5.1052428,213.52,213.43,0.03101391]
[1756433031238,2.51659208,213.51,213.43,0.03101391]
[1756433031430,2.51659208,213.5,213.43,0.03101391]
[1756433031630,1.06,213.52,213.43,0.03101391]
[1756433031840,2.5170224,213.51,213.44,7.73]
[1756433032029,2.5170224,213.5,213.44,7.73]
[1756433032227,4.0452428,213.51,213.44,7.73]
[1756433032434,2.51784936,213.5,213.44,7.73]
[1756433032730,1.06,213.53,213.45,0.03412914]
[1756433032929,4.0452428,213.51,213.45,0.03412914]
[1756433033128,1.06,213.49,213.45,0.03412914]
[1756433034338,5.1052428,213.51,213.45,0.03412914]
[1756433034638,1.06,213.49,213.45,0.03412914]
[1756433034938,4.215,213.49,213.45,0.03412914]
[1756433035130,1.06,213.48,213.45,0.03412914]
[1756433035329,5.1052428,213.53,213.45,0.03412914]
[1756433035533,2.51804431,213.52,213.45,0.03412914]
[1756433035735,2.51804431,213.51,213.45,0.03412914]
[1756433035935,3.57804431,213.5,213.45,0.03412914]
[1756433036138,1.06,213.5,213.45,0.03412914]
[1756433037946,1.06,213.52,213.45,0.03412914]
[1756433039836,2.51831397,213.51,213.45,0.03412914]
[1756433040040,1.06,213.52,213.45,0.03412914]
[1756433040643,4.0452428,213.49,213.45,0.03412914]
[1756433040838,4.0452428,213.49,213.35,7.73]
[1756433040839,3.57884946,213.48,213.35,7.73]
[1756433041041,1.06,213.48,213.35,7.73]
[1756433041447,2.61633105,213.44,213.35,7.73]
[1756433042141,0.03475529,213.42,213.35,7.73]
[1756433045047,2.61633105,213.36,213.3,7.73]
[1756433045252,2.61633105,213.32,213.25,7.73]
[1756433045748,0.03520616,213.31,213.25,7.73]
[1756433047549,1.11,213.44,213.27,7.85]
[1756433047751,2.51942209,213.43,213.27,12.34]
[1756433047951,5.13774737,213.49,213.3,7.85]
[1756433048251,4.02774737,213.53,213.34,7.85]
[1756433048446,2.51894541,213.52,213.34,7.85]
[1756433048653,1.11,213.53,213.38,7.85]
[1756433048851,1.11,213.53,213.42,7.85]
[1756433049346,4.02774737,213.59,213.42,7.85]
[1756433049548,2.51824241,213.58,213.45,0.03056426]
[1756433049749,5.13774737,213.59,213.46,7.85]
[1756433050350,1.11,213.59,213.5,0.03147819]
[1756433050852,2.5174503,213.58,213.5,0.03147819]
[1756433051051,1.11,213.59,213.5,0.03147819]
[1756433051852,1.11,213.59,213.5,7.88147819]
[1756433053756,164.08752054,213.61,213.5,7.88147819]
[1756433055055,1.09,213.64,213.5,7.88147819]
[1756433055456,1.09,213.64,213.5,7.85]
[1756433055857,1.09,213.64,213.55,0.03034569]
[1756433056751,1.09,213.71,213.56,7.85]
[1756433056956,2.51368,213.7,213.56,7.85]
[1756433057155,1.09,213.71,213.58,7.85]
[1756433057156,2.51368,213.69,213.58,7.85]
[1756433057355,5.18940073,213.81,213.62,7.85]
[1756433057356,123.37,213.76,213.62,7.85]
[1756433057561,2.5117738,213.75,213.62,7.85]
[1756433057861,2.5117738,213.74,213.62,7.85]
[1756433058051,123.37,213.76,213.66,0.03223704]
[1756433058253,2.51163572,213.75,213.66,0.03223704]
[1756433058454,2.51163572,213.74,213.66,0.03223704]
[1756433058762,123.37,213.76,213.66,0.03223704]
[1756433058962,2.50965252,213.75,213.66,0.03223704]
[1756433059157,1.09,213.76,213.67,7.85]
[1756433059463,1.09,213.81,213.67,7.85]
[1756433059761,1.09,213.81,213.7,7.85]
[1756433060152,1.09,213.81,213.72,0.03571342]
[1756433061957,103.32977755,213.82,213.73,7.85]
[1756433062265,1.09,213.85,213.73,11.87774737]
[1756433062964,4.2072,213.88,213.78,7.85]
[1756433063662,4.2072,213.88,213.81,0.03090355]
[1756433065667,1.09,213.89,213.81,0.03090355]
[1756433067162,1.09,213.93,213.81,7.88090355]
[1756433067664,1.09,213.93,213.81,7.85]
[1756433067863,1.09,213.93,213.85,0.03454852]
[1756433068065,314.58,213.96,213.85,0.03454852]
[1756433068262,314.58,213.96,213.85,7.88454852]
[1756433068658,318.7857,213.96,213.85,7.88454852]
[1756433070367,1.09,213.95,213.85,0.03454852]
[1756433071070,5.296,213.95,213.85,0.03454852]
[1756433071270,1.09,213.95,213.85,0.03454852]
[1756433071765,121.54,213.97,213.85,0.03454852]
[1756433071971,0.03431532,213.92,213.85,0.03454852]
[1756433072270,1.09,213.91,213.85,0.03454852]
[1756433073977,80.26,213.9,213.85,0.03454852]
[1756433074268,1.09,213.89,213.85,0.03454852]
[1756433074574,1.09,213.86,213.85,0.03454852]
[1756433074972,1.09,213.82,213.71,314.42]
[1756433075372,1.09,213.82,213.7,7.85]
[1756433075878,5.2984,213.82,213.7,7.85]
[1756433076178,0.03586824,213.78,213.7,7.85]
[1756433076676,0.03586824,213.78,213.73,4.02774737]
[1756433076977,1.09,213.92,213.78,7.45]
[1756433078175,1.09,213.92,213.83,0.03032232]
[1756433078377,5.2964,213.92,213.83,0.03032232]
[1756433078776,1.09,213.92,213.83,0.03032232]
[1756433081384,4.2068,213.91,213.83,0.03032232]
[1756433081575,1.09,213.92,213.83,0.03032232]
[1756433082286,4.207,213.9,213.83,0.03032232]
[1756433082780,1.09,213.88,213.83,0.03032232]
[1756433083085,5.2972,213.89,213.83,0.03032232]
[1756433083881,4.2074,213.88,213.83,0.03032232]
[1756433084187,1.09,213.9,213.83,0.03032232]
[1756433084486,1.09,213.85,213.83,0.03032232]
[1756433084683,1.09,213.86,213.83,0.03032232]
[1756433084986,4.208,213.85,213.83,0.03032232]
[1756433085188,1.09,213.84,213.83,0.03032232]
[1756433085681,19.0,213.9,213.83,0.03032232]
[1756433085886,20.09,213.9,213.83,0.03032232]
[1756433086187,20.09,213.9,213.76,7.45]
[1756433086489,1.09,213.9,213.84,0.03075828]
[1756433086785,27.06774737,213.91,213.84,0.03075828]
[1756433086986,1.09,213.9,213.84,0.03075828]
[1756433087786,5.2976,213.87,213.84,0.03075828]
[1756433088587,4.2076,213.87,213.84,0.03075828]
[1756433088787,1.09,213.86,213.84,0.03075828]
[1756433089787,4.02774737,213.91,213.84,0.03075828]
[1756433090084,1.09,213.92,213.84,0.03075828]
[1756433090687,4.2067,213.91,213.84,0.03075828]
[1756433091190,1.09,213.92,213.84,0.03075828]
[1756433091390,1.09,213.9,213.84,0.03075828]
[1756433092086,1.09,213.85,213.84,0.03075828]
[1756433092282,1.09,213.91,213.84,0.03075828]
[1756433092490,2.49002928,213.9,213.84,0.03075828]
[1756433092692,1.09,213.91,213.84,0.03075828]
[1756433093292,5.2968,213.91,213.84,0.03075828]
[1756433094196,6.70272868,213.9,213.84,0.03075828]
[1756433094395,4.2069,213.9,213.84,0.03075828]
[1756433094590,5.18940073,214.07,213.87,4.02774737]
[1756433094898,2.4950804,214.06,213.92,7.45]
[1756433095195,1.90324562,214.14,213.96,7.45]
[1756433095395,3.18012774,214.13,213.97,0.03197607]
[1756433095597,1.09,214.14,213.98,7.45]
[1756433095992,1.09,214.14,214.03,0.03548569]
[1756433096790,1.09,214.23,214.07,4.02774737]
[1756433096991,1.09,214.22,214.08,7.45]
[1756433097396,4.201,214.2,214.08,7.45]
[1756433097691,1.09,214.22,214.13,0.03191964]
[1756433097996,5.2914,214.18,214.13,0.03191964]
[1756433098691,4.2018,214.16,214.13,0.03191964]
[1756433099090,1.09,214.18,214.13,0.03191964]
[1756433099289,4.02774737,214.19,214.13,0.03191964]
[1756433099491,1.09,214.28,214.14,7.45]
[1756433099894,1.09,214.26,214.14,7.45]
[1756433100196,1.09,214.24,214.19,0.03073935]
[1756433100592,1.09,214.24,214.09,7.45]
[1756433100899,1.09,214.29,214.19,0.03233516]
[1756433101294,1.09,214.29,214.16,7.45]
[1756433101494,1.09,214.29,214.22,0.02999597]
[1756433101696,1.09,214.34,214.22,0.02999597]
[1756433102094,123.78,214.33,214.22,0.02999597]
[1756433102497,123.82,214.32,214.22,0.02999597]
[1756433102893,123.82,214.31,214.22,0.02999597]
[1756433103303,123.74,214.3,214.22,0.02999597]
[1756433103894,123.72,214.3,214.22,0.02999597]
[1756433104297,123.66,214.29,214.22,0.02999597]
[1756433104693,1.09,214.34,214.22,0.02999597]
[1756433104895,123.66,214.29,214.22,0.02999597]
[1756433106409,1.09,214.3,214.22,0.02999597]
[1756433106906,68.94,214.29,214.22,0.02999597]
[1756433107205,1.09,214.3,214.22,0.02999597]
[1756433107403,123.38,214.29,214.22,0.02999597]
[1756433107600,1.09,214.3,214.22,0.02999597]
[1756433107796,314.0,214.37,214.22,0.02999597]
[1756433108098,314.0,214.37,214.21,7.75]
[1756433108099,1.09,214.35,214.21,7.75]
[1756433108295,5.11774737,214.35,214.21,7.75]
[1756433108499,1.09,214.33,214.27,0.03188098]
[1756433109001,4.1986,214.32,214.27,0.03188098]
[1756433109299,4.1986,214.32,214.16,7.75]
[1756433109300,1.06,214.3,214.16,7.75]
[1756433109501,123.44,214.29,214.16,7.75]
[1756433109697,123.44,214.29,213.89,7.79636079]
[1756433109698,1.06,214.26,214.1,7.75]
[1756433110199,5.2602,214.24,214.1,7.75]
[1756433110405,1.06,214.22,214.05,7.75]
[1756433110604,1.06,214.2,214.05,7.75]
[1756433110902,1.06,214.17,213.98,7.75]
[1756433111199,62.34,214.16,213.98,7.75]
[1756433111401,5.08774737,214.15,213.98,7.75]
[1756433111704,69.26,214.14,213.98,7.75]
[1756433111900,1.06,214.13,213.98,7.75]
[1756433112103,65.52,214.12,213.98,7.75]
[1756433112302,4.02774737,214.11,213.98,7.75]
[1756433112495,4.02774737,214.03,213.9,7.75]
[1756433112700,6.92,214.02,213.9,7.75]
[1756433112898,4.02774737,214.03,213.9,7.75]
[1756433113105,84.54,214.02,213.9,7.75]
[1756433113302,6.69476728,214.03,213.9,7.75]
[1756433113502,0.0296253,213.99,213.94,7.7814894]
[1756433113700,0.0296253,213.99,213.95,7.75]
[1756433114004,123.98,214.03,213.95,7.75]
[1756433115001,314.82,214.06,213.95,7.75]
[1756433115298,123.96,214.05,213.95,7.75]
[1756433116705,123.92,214.04,213.95,7.75]
[1756433116906,1.08,214.03,213.84,7.75]
[1756433117504,5.2844,214.03,213.84,7.75]
[1756433118008,1.08,213.98,213.84,7.75]
[1756433118204,73.08,213.97,213.84,7.75]
[1756433118612,0.03148291,213.93,213.84,7.75]
[1756433119308,0.03148291,213.93,213.86,0.03176068]
[1756433120006,0.03148291,213.93,213.87,7.75]
[1756433127819,0.24,214.06,213.9,7.75]
[1756433128016,0.24,214.07,213.9,7.75]
[1756433128916,1.11,214.09,213.96,0.03284833]
[1756433129117,1.11,214.09,213.97,7.75]
[1756433129619,1.11,214.09,214.01,0.02987523]
[1756433129916,123.36,214.08,214.01,0.02987523]
[1756433130417,127.5633,214.08,214.01,0.02987523]
[1756433131512,1.11,214.07,214.01,0.02987523]
[1756433132015,123.26,214.06,214.01,0.02987523]
[1756433132214,129.95476728,214.06,213.82,7.75]
[1756433132616,83.02,214.05,213.82,7.75]
[1756433132814,6.69476728,214.06,213.82,7.75]
[1756433133015,11.8,214.05,213.82,7.75]
[1756433133219,1.08,214.05,213.82,7.75]
[1756433133419,5.2849,214.01,213.83,7.75]
[1756433134115,10.08,214.0,213.83,7.75]
[1756433135218,14.16,213.99,213.83,7.75]
[1756433135812,14.16,213.99,213.89,7.78024899]
[1756433135813,0.032036,213.93,213.89,7.78024899]
[1756433136919,0.032036,213.93,213.9,7.55]
[1756433137424,1.11,214.07,213.9,8.01]
[1756433137618,3.07,214.07,213.91,7.55]
[1756433138217,1.11,214.07,213.91,7.55]
[1756433138415,5.07,214.07,213.91,7.55]
[1756433138816,5.07,214.07,213.97,0.02956227]
[1756433139112,1.11,214.07,213.97,0.02956227]
[1756433140022,5.11488336,214.07,213.97,0.02956227]
[1756433140215,76.24,214.06,213.97,0.02956227]
[1756433140416,5.11488336,214.07,213.97,0.02956227]
[1756433140720,76.4,214.06,213.97,0.02956227]
[1756433140922,4.2039,214.05,213.97,0.02956227]
[1756433141112,1.11,214.04,213.97,0.02956227]
[1756433143023,4.00488336,214.03,213.97,0.02956227]
[1756433143321,5.11488336,214.03,213.97,0.02956227]
[1756433143520,1.11,214.01,213.97,0.02956227]
[1756433143722,98.83488336,214.03,213.97,0.02956227]
[1756433143924,5.11488336,214.03,213.97,0.02956227]
[1756433144118,1.11,214.03,213.97,0.02956227]
[1756433144313,1.11,214.08,213.97,0.02956227]
[1756433144514,1.11,214.08,213.97,7.57956227]
[1756433144721,1.11,214.08,213.97,7.55]
[1756433144917,66.18,214.11,213.97,7.55]
[1756433145123,5.3125,214.13,214.0,0.0340509]
[1756433145519,5.3125,214.13,213.97,7.55]
[1756433145717,66.72,214.12,213.97,7.55]
[1756433146024,5.3125,214.13,214.04,0.03345345]
[1756433146215,1.11,214.13,214.04,0.03345345]
[1756433146418,124.15,214.13,214.04,0.03345345]
[1756433146718,1.11,214.13,214.04,0.03345345]
[1756433146924,124.15,214.13,214.04,0.03345345]
[1756433147113,124.11,214.13,214.04,0.03345345]
[1756433148024,124.09,214.13,214.04,0.03345345]
[1756433148224,124.03,214.13,214.04,0.03345345]
[1756433149418,1.11,214.13,214.04,0.03345345]
[1756433149622,8.78,214.15,214.05,7.55]
[1756433149823,1.11,214.17,214.05,7.55]
[1756433150422,122.78,214.16,214.09,0.03317152]
[1756433151816,1.11,214.15,214.09,0.03317152]
[1756433152223,1.11,214.13,214.09,0.03317152]
[1756433153318,122.68,214.16,214.09,0.03317152]
[1756433154622,122.64,214.16,214.09,0.03317152]
[1756433154818,4.2017,214.17,214.09,0.03317152]
[1756433155025,122.54,214.16,214.09,0.03317152]
[1756433155929,122.48,214.16,214.09,0.03317152]
[1756433156227,1.11,214.15,214.09,0.03317152]
[1756433159930,1.11,214.13,214.09,0.03317152]
[1756433160123,4.2023,214.14,214.09,0.03317152]
[1756433160321,1.11,214.13,214.09,0.03317152]
[1756433160533,4.2023,214.14,214.09,0.03317152]
[1756433160830,1.11,214.17,214.09,0.03317152]
[1756433161332,1.11,214.17,214.07,7.55]
[1756433161535,1.11,214.17,214.11,0.03123179]
[1756433161733,78.01,214.17,214.11,0.03123179]
[1756433161926,1.11,214.17,214.11,0.03123179]
[1756433163429,1.11,214.22,214.11,7.58123179]
[1756433164136,1.11,214.27,214.11,7.58123179]
[1756433164430,47.24,214.25,214.11,7.58123179]
[1756433164635,47.24,214.25,214.11,7.55]
[1756433164833,47.24,214.25,214.16,0.03199992]
[1756433165039,122.4,214.25,214.16,0.03199992]
[1756433165230,5.3097,214.27,214.16,0.03199992]
[1756433165735,225.07734573,214.26,214.16,0.03199992]
[1756433166437,1.11,214.25,214.16,0.03199992]
[1756433167341,3.99781862,214.22,214.16,0.03199992]
[1756433167535,1.11,214.21,214.16,0.03199992]
[1756433167833,3.99781862,214.22,214.16,0.03199992]
[1756433168240,1.11,214.17,214.16,0.03199992]
[1756433171840,23.85,214.17,214.16,0.03199992]
[1756433173339,1.11,214.17,214.16,0.03199992]
[1756433173734,4.2018,214.16,214.04,7.31]
[1756433174134,23.85,214.17,214.04,7.31]
[1756433174738,1.11,214.17,214.04,7.31]
[1756433174937,25.64,214.16,214.04,7.31]
[1756433175333,1.11,214.17,214.04,7.31]
[1756433175641,4.0,214.16,214.04,7.31]
[1756433175945,1.11,214.17,214.04,7.31]
[1756433176237,1.11,214.17,214.05,7.31]
[1756433176438,4.0,214.19,214.05,7.31]
[1756433176637,1.05,214.21,214.05,7.31]
[1756433176841,7.38,214.2,214.05,7.31]
[1756433177940,1.05,214.21,214.09,7.31]
[1756433178138,10.94,214.24,214.09,7.31]
[1756433178332,1.05,214.26,214.09,7.31]
[1756433180746,1.05,214.26,214.13,7.31]
[1756433180951,1.05,214.3,214.17,7.31]
[1756433182842,5.2492,214.3,214.17,7.31]
[1756433184351,105.74341186,214.31,214.17,7.31]
[1756433184553,1.05,214.29,214.17,7.31]
[1756433185051,5.2493,214.29,214.17,7.31]
[1756433185455,4.1997,214.27,214.17,7.31]
[1756433185656,121.36,214.3,214.17,7.31]
[1756433186257,5.2501,214.25,214.17,7.31]
[1756433186853,1.05,214.24,214.1,7.31]
[1756433187052,121.26,214.23,214.1,7.31]
[1756433187550,1.05,214.22,214.1,7.31]
[1756433187949,4.2011,214.2,214.1,7.31]
[1756433188251,1.05,214.39,214.19,7.31]
[1756433188450,4.1992,214.29,214.19,7.31]
[1756433188650,12.8792,214.29,214.19,7.31]
[1756433188847,1.05,214.3,214.19,7.31]
[1756433189047,56.48,214.29,214.19,7.31]
[1756433189249,1.05,214.3,214.19,7.31]
[1756433189451,111.98,214.29,214.14,7.31]
[1756433189651,1.05,214.28,214.14,7.31]
[1756433190059,58.5,214.27,214.14,7.31]
[1756433190357,14.05,214.26,214.14,7.31]
[1756433190557,1.05,214.25,214.14,7.31]
[1756433190757,72.8,214.24,214.14,7.31]
[1756433190951,4.2002,214.24,214.14,7.31]
[1756433191148,122.2,214.23,214.14,7.31]
[1756433191858,126.4005,214.23,214.14,7.31]
[1756433192049,1.05,214.22,214.09,7.31]
[1756433192253,122.2,214.21,214.09,7.31]
[1756433193056,1.05,214.22,214.09,7.31]
[1756433193256,122.2,214.21,214.09,7.31]
[1756433193963,121.91,214.22,214.09,7.31]
[1756433194964,118.9,214.21,214.09,7.31]
[1756433195453,115.99,214.22,214.09,7.31]
[1756433197663,1.05,214.22,214.09,7.31]
[1756433197870,114.27,214.22,214.09,12.42022487]
[1756433198162,1.05,214.22,214.09,12.42022487]
[1756433198362,4.98,214.23,214.11,7.39]
[1756433198563,4.2,214.25,214.12,7.39]
[1756433198766,70.88,214.25,214.13,12.50022487]
[1756433198962,1.06,214.26,214.13,5.11022487]
[1756433199269,1.06,214.26,214.14,7.39]
[1756433199866,1.06,214.26,214.14,12.50022487]
[1756433200065,1.06,214.26,214.15,7.39]
[1756433200261,1.06,214.26,214.15,12.50022487]
[1756433200569,1.06,214.26,214.15,7.39]
[1756433200970,122.8,214.35,214.19,7.39]
[1756433201170,122.8,214.35,214.19,12.50022487]
[1756433201370,1.06,214.34,214.19,12.50022487]
[1756433201572,1.06,214.34,214.19,7.39]
[1756433202172,1.06,214.34,214.21,7.39]
[1756433202371,1.06,214.34,214.2,3.99781862]
[1756433202372,1.06,214.34,214.23,7.39]
[1756433204767,4.1986,214.33,214.23,7.39]
[1756433205467,4.1988,214.31,214.23,7.39]
[1756433205768,5.2588,214.31,214.23,7.39]
[1756433206065,1.06,214.36,214.23,7.39]
[1756433206468,121.74,214.38,214.23,12.50022487]
[1756433206673,121.74,214.38,214.24,7.39]
[1756433207568,1.06,214.4,214.25,3.99781862]
[1756433207770,121.78,214.39,214.26,7.39]
[1756433208274,4.1978,214.37,214.26,7.39]
[1756433208574,121.78,214.39,214.26,7.39]
[1756433208769,1.06,214.38,214.26,7.39]
[1756433208971,60.42,214.37,214.26,7.39]
[1756433209171,1.06,214.38,214.26,7.39]
[1756433210969,5.2575,214.38,214.26,7.39]
[1756433211171,1.06,214.38,214.26,7.39]
[1756433211674,4.1978,214.37,214.26,7.39]
[1756433212270,4.198,214.36,214.26,7.39]
[1756433212468,1.06,214.38,214.26,7.39]
[1756433212664,113.48,214.39,214.22,7.39]
[1756433212869,1.06,214.38,214.22,7.39]
[1756433213166,4.1986,214.33,214.22,7.39]
[1756433213369,1.06,214.38,214.22,7.39]
[1756433213774,4.1979,214.36,214.22,7.39]
[1756433215072,4.1982,214.35,214.22,7.39]
[1756433216076,4.1984,214.34,214.22,7.39]
[1756433217077,4.1985,214.33,214.22,7.39]
[1756433217473,1.06,214.35,214.17,5.11022487]
[1756433217680,1.06,214.3,214.18,7.39]
[1756433218679,4.1997,214.27,214.18,7.39]
[1756433219075,1.06,214.3,214.18,7.39]
[1756433219778,14.92,214.33,214.18,7.39]
[1756433219981,67.68,214.33,214.19,7.39]
[1756433220376,1.06,214.32,214.19,7.39]
[1756433220674,1.06,214.37,214.22,7.39]
[1756433220982,1.06,214.37,214.23,7.39]
[1756433221882,4.198,214.36,214.23,7.39]
[1756433222082,1.06,214.37,214.23,7.39]
[1756433222277,1.06,214.36,214.2,5.11022487]
[1756433222480,1.06,214.36,214.18,7.39]
[1756433222683,1.06,214.36,214.2,5.11022487]
[1756433222886,1.06,214.36,214.21,7.39]
[1756433223378,4.1983,214.34,214.22,7.39]
[1756433224575,1.06,214.35,214.22,7.39]
[1756433225487,4.1989,214.31,214.22,7.39]
[1756433225779,1.06,214.34,214.22,7.39]
[1756433225985,1.06,214.31,214.22,7.39]
[1756433226787,4.1993,214.29,214.22,7.39]
[1756433227482,1.06,214.31,214.22,7.39]
[1756433227683,75.62,214.33,214.22,7.39]
[1756433228385,4.1987,214.32,214.22,7.39]
[1756433228586,1.06,214.32,214.22,7.39]
[1756433229080,75.62,214.33,214.18,5.11022487]
[1756433229081,3.99781862,214.33,214.18,5.11022487]
[1756433229279,1.06,214.28,214.17,7.65]
[1756433229676,1.06,214.21,214.13,5.11022487]
[1756433229883,1.06,214.21,214.1,12.76022487]
[1756433230085,1.06,214.21,214.1,7.65]
[1756433231388,4.201,214.2,214.1,7.65]
[1756433235284,14.05,214.36,214.1,7.65]
[1756433235484,5.04781862,214.33,214.13,7.65]
[1756433235790,5.04781862,214.33,214.15,7.65]
[1756433235990,1.05,214.32,214.15,7.65]
[1756433236588,4.1998,214.27,214.15,7.65]
[1756433237387,1.05,214.34,214.15,7.65]
[1756433237685,5.04781862,214.41,214.22,7.65]
[1756433237886,9.24461862,214.41,214.25,7.65]
[1756433238392,4.1972,214.4,214.25,7.65]
[1756433238689,1.05,214.41,214.25,7.65]
[1756433238888,1.05,214.41,214.26,7.65]
[1756433239083,4.1972,214.4,214.26,7.65]
[1756433239488,4.1974,214.39,214.26,7.65]
[1756433241490,4.1976,214.38,214.26,7.65]
[1756433243787,4.1978,214.36,214.26,7.65]
[1756433244590,3.99781862,214.37,214.26,7.65]
[1756433244790,1.05,214.36,214.26,7.65]
[1756433244990,1.05,214.36,214.21,12.76022487]
[1756433245187,1.05,214.36,214.21,7.65]
[1756433245788,3.99781862,214.37,214.21,7.65]
[1756433246388,4.1994,214.29,214.21,7.65]
[1756433246990,1.05,214.3,214.21,7.65]
[1756433248296,4.1994,214.29,214.21,7.65]
[1756433249994,1.05,214.3,214.16,12.76022487]
[1756433250299,1.05,214.27,214.16,7.65]
[1756433250899,4.1998,214.26,214.16,7.65]
[1756433251196,1.05,214.27,214.16,7.65]
[1756433251498,4.1988,214.31,214.16,7.65]
[1756433251696,1.05,214.32,214.17,7.65]